[Event "Titled Tuesday Blitz March 29 Early 2022"]
[White "Kostina, Nadezhda"]
[Black "Adewumi, Tanitoluwa"]
[WhiteFideId "4195876"]
[BlackFideId "30966396"]
[WhiteElo "1982"]
[BlackElo "2550"]
[Result "0-1"]
[Round "08"]
[TimeControl "180+1"]
[Date "2022.03.30"]
[WhiteClock "0:00:27"]
[BlackClock "0:00:13"]

1. e4 {[%clk 0:03:00]}  c6 {[%clk 0:02:59]} 2. d4 {[%clk 0:03:00]}  d5 {[%clk 0:02:54]} 3. e5 {[%clk 0:02:59]}  c5 {[%clk 0:02:49]} 4. dxc5 {[%clk 0:02:56]}  Nc6 {[%clk 0:02:44]} 5. f4 {[%clk 0:02:51]}  e6 {[%clk 0:02:40]} 6. Be3 {[%clk 0:02:45]}  d4 {[%clk 0:02:22]} 7. Bf2 {[%clk 0:02:44]}  Bxc5 {[%clk 0:02:18]} 8. Nf3 {[%clk 0:02:44]}  Nge7 {[%clk 0:02:13]} 9. Bd3 {[%clk 0:02:33]}  Nd5 {[%clk 0:02:10]} 10. Qc1 {[%clk 0:02:25]}  O-O {[%clk 0:02:06]} 11. O-O {[%clk 0:02:24]}  f6 {[%clk 0:02:03]} 12. c4 {[%clk 0:01:57]}  Ne3 {[%clk 0:01:48]} 13. Re1 {[%clk 0:01:40]}  fxe5 {[%clk 0:01:45]} 14. Ng5 {[%clk 0:01:22]}  g6 {[%clk 0:01:38]} 15. Ne4 {[%clk 0:01:21]}  Bb4 {[%clk 0:01:33]} 16. Nbd2 {[%clk 0:01:12]}  exf4 {[%clk 0:01:27]} 17. a3 {[%clk 0:01:11]}  Be7 {[%clk 0:01:25]} 18. Nf3 {[%clk 0:01:03]}  e5 {[%clk 0:01:18]} 19. b4 {[%clk 0:01:00]}  Bg4 {[%clk 0:01:02]} 20. b5 {[%clk 0:00:58]}  Bxf3 {[%clk 0:00:49]} 21. bxc6 {[%clk 0:00:55]}  Bxe4 {[%clk 0:00:39]} 22. Bxe4 {[%clk 0:00:54]}  bxc6 {[%clk 0:00:38]} 23. Bxc6 {[%clk 0:00:53]}  Rc8 {[%clk 0:00:35]} 24. Bxe3 {[%clk 0:00:49]}  fxe3 {[%clk 0:00:34]} 25. Bd5+ {[%clk 0:00:48]}  Qxd5 {[%clk 0:00:32]} 26. cxd5 {[%clk 0:00:48]}  Rxc1 {[%clk 0:00:33]} 27. Raxc1 {[%clk 0:00:47]}  Bxa3 {[%clk 0:00:32]} 28. Rc7 {[%clk 0:00:47]}  Bb4 {[%clk 0:00:31]} 29. Rb1 {[%clk 0:00:42]}  e2 {[%clk 0:00:29]} 30. d6 {[%clk 0:00:36]}  e1=Q+ {[%clk 0:00:19]} 31. Rxe1 {[%clk 0:00:35]}  Bxe1 {[%clk 0:00:20]} 32. d7 {[%clk 0:00:33]}  Bf2+ {[%clk 0:00:20]} 33. Kf1 {[%clk 0:00:30]}  Bh4+ {[%clk 0:00:18]} 34. Ke2 {[%clk 0:00:29]}  e4 {[%clk 0:00:18]} 35. Rc8 {[%clk 0:00:27]}  Bg5 {[%clk 0:00:13]} 0-1


[Site "https://www.chess.com"]

[Event "Titled Tuesday Blitz March 29 Early 2022"]
[White "Khripachenko, Alexander"]
[Black "Lauridsen, Jesper Morch"]
[WhiteFideId "54184975"]
[BlackFideId "1401890"]
[WhiteElo "2177"]
[BlackElo "2324"]
[Result "0-1"]
[Round "08"]
[TimeControl "180+1"]
[Date "2022.03.30"]
[WhiteClock "0:00:51"]
[BlackClock "0:00:14"]

1. e4 {[%clk 0:02:59]}  c5 {[%clk 0:02:59]} 2. Nf3 {[%clk 0:02:51]}  e6 {[%clk 0:02:59]} 3. d4 {[%clk 0:02:51]}  cxd4 {[%clk 0:02:59]} 4. Nxd4 {[%clk 0:02:52]}  Nc6 {[%clk 0:02:59]} 5. Nb5 {[%clk 0:02:51]}  d6 {[%clk 0:02:58]} 6. c4 {[%clk 0:02:51]}  Nf6 {[%clk 0:02:54]} 7. N5c3 {[%clk 0:02:45]}  b6 {[%clk 0:02:53]} 8. f3 {[%clk 0:02:43]}  Be7 {[%clk 0:02:52]} 9. Be2 {[%clk 0:02:43]}  O-O {[%clk 0:02:50]} 10. O-O {[%clk 0:02:44]}  Bb7 {[%clk 0:02:49]} 11. Be3 {[%clk 0:02:45]}  Rc8 {[%clk 0:02:43]} 12. Qd2 {[%clk 0:02:43]}  Qc7 {[%clk 0:02:31]} 13. Na3 {[%clk 0:02:44]}  Rfd8 {[%clk 0:02:30]} 14. Rac1 {[%clk 0:02:43]}  Qb8 {[%clk 0:02:28]} 15. Rfd1 {[%clk 0:02:43]}  Ne5 {[%clk 0:02:13]} 16. Bf1 {[%clk 0:02:27]}  Kh8 {[%clk 0:02:09]} 17. h3 {[%clk 0:02:20]}  Ned7 {[%clk 0:01:47]} 18. Bf2 {[%clk 0:02:16]}  Qa8 {[%clk 0:01:31]} 19. Nab5 {[%clk 0:01:50]}  Nf8 {[%clk 0:01:20]} 20. Qe1 {[%clk 0:01:25]}  Ng6 {[%clk 0:01:02]} 21. Rd2 {[%clk 0:01:23]}  Ne5 {[%clk 0:01:00]} 22. Rcd1 {[%clk 0:01:20]}  Qb8 {[%clk 0:00:52]} 23. Bg3 {[%clk 0:01:10]}  Nh5 {[%clk 0:00:45]} 24. Bh2 {[%clk 0:01:10]}  Bg5 {[%clk 0:00:44]} 25. Rxd6 {[%clk 0:01:08]}  Bf4 {[%clk 0:00:30]} 26. Bxf4 {[%clk 0:01:07]}  Nxf4 {[%clk 0:00:30]} 27. Qg3 {[%clk 0:01:06]}  g5 {[%clk 0:00:25]} 28. Qxg5 {[%clk 0:01:04]}  Nxh3+ {[%clk 0:00:25]} 29. gxh3 {[%clk 0:00:56]}  Nxf3+ {[%clk 0:00:23]} 30. Kf2 {[%clk 0:00:54]}  Nxg5 {[%clk 0:00:22]} 31. e5 {[%clk 0:00:53]}  Rxd6 {[%clk 0:00:21]} 32. Nxd6 {[%clk 0:00:54]}  Rd8 {[%clk 0:00:18]} 33. h4 {[%clk 0:00:53]}  Rxd6 {[%clk 0:00:16]} 34. exd6 {[%clk 0:00:52]}  Ne4+ {[%clk 0:00:15]} 35. Nxe4 {[%clk 0:00:52]}  Bxe4 {[%clk 0:00:16]} 36. d7 {[%clk 0:00:53]}  Qd8 {[%clk 0:00:16]} 37. c5 {[%clk 0:00:52]}  Bc6 {[%clk 0:00:15]} 38. b4 {[%clk 0:00:52]}  bxc5 {[%clk 0:00:14]} 39. bxc5 {[%clk 0:00:51]}  Bxd7 {[%clk 0:00:15]} 40. Bb5 {[%clk 0:00:51]}  Qxh4+ {[%clk 0:00:14]} 0-1


[Site "https://www.chess.com"]

[Event "Titled Tuesday Blitz March 29 Early 2022"]
[White "Kopylov, Alexander A."]
[Black "Mihailidis, Anastasios"]
[WhiteFideId "4164857"]
[BlackFideId "4205588"]
[WhiteElo "2436"]
[BlackElo "2312"]
[Result "1-0"]
[Round "08"]
[TimeControl "180+1"]
[Date "2022.03.30"]
[WhiteClock "0:01:54"]
[BlackClock "0:01:07"]

1. e4 {[%clk 0:02:58]}  c5 {[%clk 0:03:00]} 2. Nf3 {[%clk 0:02:58]}  d6 {[%clk 0:03:00]} 3. d4 {[%clk 0:02:58]}  cxd4 {[%clk 0:03:01]} 4. Nxd4 {[%clk 0:02:59]}  Nf6 {[%clk 0:03:02]} 5. Nc3 {[%clk 0:02:59]}  g6 {[%clk 0:03:01]} 6. Be3 {[%clk 0:02:58]}  Bg7 {[%clk 0:03:01]} 7. f3 {[%clk 0:02:58]}  O-O {[%clk 0:03:01]} 8. Qd2 {[%clk 0:02:59]}  Nc6 {[%clk 0:03:02]} 9. O-O-O {[%clk 0:02:59]}  d5 {[%clk 0:03:02]} 10. Qe1 {[%clk 0:02:59]}  e5 {[%clk 0:02:57]} 11. Nxc6 {[%clk 0:02:58]}  bxc6 {[%clk 0:02:58]} 12. exd5 {[%clk 0:02:59]}  cxd5 {[%clk 0:02:58]} 13. Bg5 {[%clk 0:02:58]}  d4 {[%clk 0:02:50]} 14. Ne4 {[%clk 0:02:56]}  Bf5 {[%clk 0:02:47]} 15. Qh4 {[%clk 0:02:21]}  Bxe4 {[%clk 0:02:41]} 16. fxe4 {[%clk 0:02:20]}  Qd6 {[%clk 0:02:33]} 17. Bc4 {[%clk 0:02:18]}  Rac8 {[%clk 0:02:26]} 18. Bb3 {[%clk 0:02:18]}  a5 {[%clk 0:02:22]} 19. a4 {[%clk 0:02:17]}  Qc6 {[%clk 0:02:18]} 20. Rd3 {[%clk 0:02:15]}  Nxe4 {[%clk 0:02:11]} 21. Be7 {[%clk 0:02:08]}  Bf6 {[%clk 0:01:59]} 22. Bxf6 {[%clk 0:02:05]}  Nxf6 {[%clk 0:01:59]} 23. Rh3 {[%clk 0:02:04]}  h5 {[%clk 0:01:54]} 24. Qg5 {[%clk 0:02:02]}  Kg7 {[%clk 0:01:42]} 25. Rf1 {[%clk 0:02:00]}  Rce8 {[%clk 0:01:15]} 26. Rhf3 {[%clk 0:01:59]}  Ne4 {[%clk 0:01:13]} 27. Rxf7+ {[%clk 0:01:56]}  Kh8 {[%clk 0:01:06]} 28. Qh6+ {[%clk 0:01:54]}  Kg8 {[%clk 0:01:07]} 29. Qg7# {[%clk 0:01:54]} 1-0


[Site "https://www.chess.com"]

[Event "Titled Tuesday Blitz March 29 Early 2022"]
[White "Kostiukov, Alexandr"]
[Black "Tan, Jun Ying"]
[WhiteFideId "14108100"]
[BlackFideId "5710413"]
[WhiteElo "2202"]
[BlackElo "1827"]
[Result "0-1"]
[Round "08"]
[TimeControl "180+1"]
[Date "2022.03.30"]
[WhiteClock "0:01:00"]
[BlackClock "0:01:47"]

1. g3 {[%clk 0:03:00]}  d5 {[%clk 0:02:54]} 2. Bg2 {[%clk 0:03:00]}  Nf6 {[%clk 0:02:54]} 3. d3 {[%clk 0:03:01]}  c6 {[%clk 0:02:55]} 4. e4 {[%clk 0:03:01]}  e5 {[%clk 0:02:53]} 5. Qe2 {[%clk 0:03:00]}  Bd6 {[%clk 0:02:52]} 6. Nf3 {[%clk 0:03:00]}  O-O {[%clk 0:02:52]} 7. O-O {[%clk 0:02:59]}  Re8 {[%clk 0:02:52]} 8. h3 {[%clk 0:02:59]}  Nbd7 {[%clk 0:02:51]} 9. b3 {[%clk 0:02:50]}  Nf8 {[%clk 0:02:50]} 10. Bb2 {[%clk 0:02:49]}  Ng6 {[%clk 0:02:50]} 11. Nbd2 {[%clk 0:02:46]}  h5 {[%clk 0:02:41]} 12. exd5 {[%clk 0:02:18]}  cxd5 {[%clk 0:02:40]} 13. c4 {[%clk 0:02:19]}  h4 {[%clk 0:02:35]} 14. Nxh4 {[%clk 0:02:02]}  Nxh4 {[%clk 0:02:34]} 15. gxh4 {[%clk 0:02:03]}  e4 {[%clk 0:02:23]} 16. cxd5 {[%clk 0:01:48]}  exd3 {[%clk 0:02:21]} 17. Qxd3 {[%clk 0:01:40]}  Nh5 {[%clk 0:02:21]} 18. Nf3 {[%clk 0:01:33]}  Nf4 {[%clk 0:02:16]} 19. Qd2 {[%clk 0:01:15]}  Qd7 {[%clk 0:02:00]} 20. Ng5 {[%clk 0:01:06]}  f6 {[%clk 0:01:48]} 21. Ne6 {[%clk 0:01:05]}  Nxe6 {[%clk 0:01:47]} 22. dxe6 {[%clk 0:01:05]}  Bh2+ {[%clk 0:01:47]} 23. Kxh2 {[%clk 0:01:00]}  Qxd2 {[%clk 0:01:47]} 0-1


[Site "https://www.chess.com"]

[Event "Titled Tuesday Blitz March 29 Early 2022"]
[White "Krylov, Ivan"]
[Black "Fernandez Sanchez, Mario Andres"]
[WhiteFideId "24128066"]
[BlackFideId "6501621"]
[WhiteElo "2258"]
[BlackElo "2057"]
[Result "1-0"]
[Round "08"]
[TimeControl "180+1"]
[Date "2022.03.30"]
[WhiteClock "0:00:18"]
[BlackClock "0:00:46"]

1. e4 {[%clk 0:03:00]}  c6 {[%clk 0:02:58]} 2. d4 {[%clk 0:03:00]}  d5 {[%clk 0:02:59]} 3. exd5 {[%clk 0:03:01]}  cxd5 {[%clk 0:03:00]} 4. c4 {[%clk 0:03:01]}  Nf6 {[%clk 0:02:58]} 5. Nc3 {[%clk 0:03:02]}  Nc6 {[%clk 0:02:58]} 6. Nf3 {[%clk 0:03:02]}  Bg4 {[%clk 0:02:58]} 7. cxd5 {[%clk 0:03:02]}  Nxd5 {[%clk 0:02:56]} 8. Qb3 {[%clk 0:03:01]}  Bxf3 {[%clk 0:02:54]} 9. gxf3 {[%clk 0:03:00]}  Nxc3 {[%clk 0:02:47]} 10. bxc3 {[%clk 0:02:57]}  Qb6 {[%clk 0:02:43]} 11. Qxb6 {[%clk 0:02:21]}  axb6 {[%clk 0:02:44]} 12. Bc4 {[%clk 0:02:14]}  Rc8 {[%clk 0:02:39]} 13. Bd3 {[%clk 0:02:06]}  e5 {[%clk 0:02:34]} 14. dxe5 {[%clk 0:02:04]}  Nxe5 {[%clk 0:02:35]} 15. Be4 {[%clk 0:01:51]}  Be7 {[%clk 0:02:23]} 16. O-O {[%clk 0:01:47]}  O-O {[%clk 0:02:19]} 17. Rb1 {[%clk 0:01:45]}  Rxc3 {[%clk 0:02:03]} 18. Bb2 {[%clk 0:01:43]}  Rc5 {[%clk 0:02:03]} 19. Bd4 {[%clk 0:01:41]}  Ra5 {[%clk 0:01:56]} 20. Rxb6 {[%clk 0:01:30]}  Bf6 {[%clk 0:01:42]} 21. Rxb7 {[%clk 0:01:20]}  Rxa2 {[%clk 0:01:41]} 22. Bc5 {[%clk 0:01:13]}  Re8 {[%clk 0:01:30]} 23. f4 {[%clk 0:01:06]}  Nd7 {[%clk 0:01:05]} 24. Bxh7+ {[%clk 0:01:00]}  Kxh7 {[%clk 0:01:06]} 25. Rxd7 {[%clk 0:01:00]}  Kg6 {[%clk 0:01:01]} 26. Be3 {[%clk 0:00:57]}  Rd8 {[%clk 0:00:53]} 27. Rxd8 {[%clk 0:00:52]}  Bxd8 {[%clk 0:00:54]} 28. Rd1 {[%clk 0:00:50]}  Bf6 {[%clk 0:00:52]} 29. Kg2 {[%clk 0:00:49]}  Kf5 {[%clk 0:00:48]} 30. Rd5+ {[%clk 0:00:46]}  Ke6 {[%clk 0:00:48]} 31. Rb5 {[%clk 0:00:44]}  Ra6 {[%clk 0:00:47]} 32. Rb6+ {[%clk 0:00:18]}  Kf5 {[%clk 0:00:46]} 33. Rxa6 {[%clk 0:00:18]} 1-0


[Site "https://www.chess.com"]

[Event "Titled Tuesday Blitz March 29 Early 2022"]
[White "Maghsoodloo, Parham"]
[Black "Oganian, Miran"]
[WhiteFideId "12539929"]
[BlackFideId "4122488"]
[WhiteElo "2630"]
[BlackElo "2357"]
[Result "1-0"]
[Round "08"]
[TimeControl "180+1"]
[Date "2022.03.29"]
[WhiteClock "0:01:21"]
[BlackClock "0:00:06"]

1. e4 {[%clk 0:02:52]}  e6 {[%clk 0:02:59]} 2. d4 {[%clk 0:02:51]}  d5 {[%clk 0:03:00]} 3. e5 {[%clk 0:02:49]}  c5 {[%clk 0:03:00]} 4. c3 {[%clk 0:02:49]}  Nc6 {[%clk 0:03:00]} 5. Nf3 {[%clk 0:02:48]}  Nh6 {[%clk 0:03:01]} 6. a3 {[%clk 0:02:46]}  Nf5 {[%clk 0:02:55]} 7. dxc5 {[%clk 0:02:44]}  Bxc5 {[%clk 0:02:53]} 8. Bd3 {[%clk 0:02:43]}  Nh4 {[%clk 0:02:50]} 9. Nxh4 {[%clk 0:02:38]}  Qxh4 {[%clk 0:02:49]} 10. g3 {[%clk 0:02:38]}  Qh3 {[%clk 0:02:44]} 11. Qe2 {[%clk 0:02:35]}  Qg2 {[%clk 0:02:39]} 12. Rf1 {[%clk 0:02:32]}  Qxh2 {[%clk 0:02:39]} 13. Nd2 {[%clk 0:02:28]}  Bd7 {[%clk 0:02:31]} 14. Nf3 {[%clk 0:02:24]}  Qh5 {[%clk 0:02:30]} 15. Be3 {[%clk 0:02:23]}  Bxe3 {[%clk 0:02:24]} 16. Qxe3 {[%clk 0:02:24]}  Qg4 {[%clk 0:02:10]} 17. Rh1 {[%clk 0:02:20]}  Qa4 {[%clk 0:02:06]} 18. Rh4 {[%clk 0:02:19]}  Qb3 {[%clk 0:02:05]} 19. Qe2 {[%clk 0:02:10]}  h6 {[%clk 0:01:55]} 20. Rb4 {[%clk 0:02:07]}  Nxb4 {[%clk 0:01:31]} 21. axb4 {[%clk 0:02:08]}  O-O {[%clk 0:00:40]} 22. Nd4 {[%clk 0:02:05]}  Qa4 {[%clk 0:00:41]} 23. Rxa4 {[%clk 0:02:05]}  Bxa4 {[%clk 0:00:42]} 24. Qh5 {[%clk 0:02:02]}  a5 {[%clk 0:00:40]} 25. g4 {[%clk 0:02:01]}  axb4 {[%clk 0:00:36]} 26. g5 {[%clk 0:02:02]}  bxc3 {[%clk 0:00:36]} 27. gxh6 {[%clk 0:02:02]}  g6 {[%clk 0:00:29]} 28. Bxg6 {[%clk 0:01:51]}  Kh8 {[%clk 0:00:29]} 29. Bd3 {[%clk 0:01:29]}  c2 {[%clk 0:00:09]} 30. Qg5 {[%clk 0:01:24]}  f6 {[%clk 0:00:06]} 31. Qg7# {[%clk 0:01:21]} 1-0


[Site "https://www.chess.com"]

[Event "Titled Tuesday Blitz March 29 Early 2022"]
[White "Majdan, Joanna"]
[Black "Postnikov, Daniil"]
[WhiteFideId "1121979"]
[BlackFideId "4166329"]
[WhiteElo "2234"]
[BlackElo "2261"]
[Result "1/2-1/2"]
[Round "08"]
[TimeControl "180+1"]
[Date "2022.03.30"]
[WhiteClock "0:00:08"]
[BlackClock "0:00:04"]

1. e4 {[%clk 0:02:54]}  e6 {[%clk 0:02:59]} 2. d4 {[%clk 0:02:53]}  d5 {[%clk 0:02:59]} 3. Nc3 {[%clk 0:02:54]}  Bb4 {[%clk 0:03:00]} 4. Ne2 {[%clk 0:02:52]}  dxe4 {[%clk 0:02:56]} 5. a3 {[%clk 0:02:51]}  Be7 {[%clk 0:02:56]} 6. Nxe4 {[%clk 0:02:49]}  Nf6 {[%clk 0:02:56]} 7. Nxf6+ {[%clk 0:02:46]}  Bxf6 {[%clk 0:02:56]} 8. Be3 {[%clk 0:02:47]}  b6 {[%clk 0:02:51]} 9. Rg1 {[%clk 0:02:48]}  Bb7 {[%clk 0:02:51]} 10. g4 {[%clk 0:02:48]}  Nd7 {[%clk 0:02:43]} 11. g5 {[%clk 0:02:48]}  Be7 {[%clk 0:02:43]} 12. h4 {[%clk 0:02:47]}  c5 {[%clk 0:02:41]} 13. Qd2 {[%clk 0:02:47]}  O-O {[%clk 0:02:05]} 14. Bg2 {[%clk 0:02:46]}  Bxg2 {[%clk 0:02:03]} 15. Rxg2 {[%clk 0:02:47]}  cxd4 {[%clk 0:02:04]} 16. Bxd4 {[%clk 0:02:43]}  e5 {[%clk 0:02:00]} 17. Bc3 {[%clk 0:02:35]}  f6 {[%clk 0:01:48]} 18. O-O-O {[%clk 0:02:22]}  Nc5 {[%clk 0:01:46]} 19. Qe3 {[%clk 0:02:22]}  Qc7 {[%clk 0:01:40]} 20. h5 {[%clk 0:02:16]}  Na4 {[%clk 0:01:28]} 21. gxf6 {[%clk 0:02:07]}  Bxf6 {[%clk 0:01:27]} 22. Bb4 {[%clk 0:02:01]}  Rfd8 {[%clk 0:01:25]} 23. Rdg1 {[%clk 0:01:44]}  e4 {[%clk 0:01:24]} 24. Rxg7+ {[%clk 0:01:30]}  Qxg7 {[%clk 0:00:37]} 25. Rxg7+ {[%clk 0:01:26]}  Kxg7 {[%clk 0:00:38]} 26. Bc3 {[%clk 0:00:49]}  Nxc3 {[%clk 0:00:37]} 27. Nxc3 {[%clk 0:00:49]}  Bxc3 {[%clk 0:00:35]} 28. Qxc3+ {[%clk 0:00:49]}  Kh6 {[%clk 0:00:24]} 29. Qf6+ {[%clk 0:00:35]}  Kxh5 {[%clk 0:00:23]} 30. Qf5+ {[%clk 0:00:36]}  Kh6 {[%clk 0:00:22]} 31. Qxe4 {[%clk 0:00:33]}  Rf8 {[%clk 0:00:15]} 32. Qg2 {[%clk 0:00:19]}  Rae8 {[%clk 0:00:14]} 33. b4 {[%clk 0:00:17]}  Rg8 {[%clk 0:00:12]} 34. Qh3+ {[%clk 0:00:17]}  Kg7 {[%clk 0:00:12]} 35. f4 {[%clk 0:00:17]}  Rgf8 {[%clk 0:00:07]} 36. Qg4+ {[%clk 0:00:13]}  Kh8 {[%clk 0:00:07]} 37. Qh5 {[%clk 0:00:10]}  Re7 {[%clk 0:00:05]} 38. f5 {[%clk 0:00:06]}  Ref7 {[%clk 0:00:06]} 39. f6 {[%clk 0:00:06]}  Rxf6 {[%clk 0:00:05]} 40. Qe5 {[%clk 0:00:07]}  Kg8 {[%clk 0:00:05]} 41. Qg5+ {[%clk 0:00:06]}  Kf7 {[%clk 0:00:05]} 42. Qh5+ {[%clk 0:00:06]}  Kg7 {[%clk 0:00:06]} 43. Qg5+ {[%clk 0:00:06]}  Rg6 {[%clk 0:00:06]} 44. Qe5+ {[%clk 0:00:07]}  Kg8 {[%clk 0:00:05]} 45. a4 {[%clk 0:00:06]}  Rg7 {[%clk 0:00:04]} 46. a5 {[%clk 0:00:06]}  Rgf7 {[%clk 0:00:05]} 47. Qg5+ {[%clk 0:00:05]}  Rg7 {[%clk 0:00:05]} 48. Qd5+ {[%clk 0:00:06]}  Kh8 {[%clk 0:00:05]} 49. axb6 {[%clk 0:00:06]}  axb6 {[%clk 0:00:04]} 50. b5 {[%clk 0:00:06]}  Rg6 {[%clk 0:00:04]} 51. Qe5+ {[%clk 0:00:07]}  Kg8 {[%clk 0:00:04]} 52. Qd5+ {[%clk 0:00:07]}  Kh8 {[%clk 0:00:03]} 53. Qe5+ {[%clk 0:00:07]}  Kg8 {[%clk 0:00:04]} 54. Qd5+ {[%clk 0:00:08]}  Kh8 {[%clk 0:00:04]} 1/2-1/2


[Site "https://www.chess.com"]

[Event "Titled Tuesday Blitz March 29 Early 2022"]
[White "Marcziter, Dmitrii"]
[Black "Kouskoutis, Georgios-Alexandros"]
[WhiteFideId "13900765"]
[BlackFideId "4234049"]
[WhiteElo "2155"]
[BlackElo "2130"]
[Result "1/2-1/2"]
[Round "08"]
[TimeControl "180+1"]
[Date "2022.03.30"]
[WhiteClock "0:00:24"]
[BlackClock "0:00:10"]

1. d4 {[%clk 0:03:00]}  Nf6 {[%clk 0:02:59]} 2. Nf3 {[%clk 0:03:00]}  d5 {[%clk 0:02:59]} 3. c4 {[%clk 0:03:00]}  e6 {[%clk 0:02:58]} 4. Nc3 {[%clk 0:03:00]}  Be7 {[%clk 0:02:55]} 5. Bg5 {[%clk 0:02:57]}  dxc4 {[%clk 0:02:53]} 6. e3 {[%clk 0:02:54]}  a6 {[%clk 0:02:52]} 7. a4 {[%clk 0:02:53]}  c5 {[%clk 0:02:48]} 8. Bxc4 {[%clk 0:02:52]}  cxd4 {[%clk 0:02:47]} 9. exd4 {[%clk 0:02:52]}  Nc6 {[%clk 0:02:45]} 10. O-O {[%clk 0:02:51]}  O-O {[%clk 0:02:44]} 11. Qd3 {[%clk 0:02:48]}  b6 {[%clk 0:02:29]} 12. Rad1 {[%clk 0:02:42]}  Bb7 {[%clk 0:02:27]} 13. Qe2 {[%clk 0:02:42]}  Nb4 {[%clk 0:02:21]} 14. Ne5 {[%clk 0:02:39]}  Nfd5 {[%clk 0:02:06]} 15. Bc1 {[%clk 0:02:34]}  Rc8 {[%clk 0:01:40]} 16. Bd2 {[%clk 0:02:22]}  Nxc3 {[%clk 0:01:18]} 17. bxc3 {[%clk 0:02:20]}  Nd5 {[%clk 0:01:19]} 18. Rc1 {[%clk 0:02:11]}  Bd6 {[%clk 0:00:37]} 19. f4 {[%clk 0:02:07]}  f6 {[%clk 0:00:25]} 20. Ng4 {[%clk 0:01:58]}  Qd7 {[%clk 0:00:17]} 21. Bb3 {[%clk 0:01:53]}  h5 {[%clk 0:00:08]} 22. Nf2 {[%clk 0:01:46]}  Bxf4 {[%clk 0:00:08]} 23. c4 {[%clk 0:01:41]}  Bxd2 {[%clk 0:00:08]} 24. Qxd2 {[%clk 0:01:39]}  Nc7 {[%clk 0:00:07]} 25. Rfd1 {[%clk 0:01:31]}  Rcd8 {[%clk 0:00:07]} 26. Qe2 {[%clk 0:01:29]}  Qf7 {[%clk 0:00:06]} 27. Ne4 {[%clk 0:01:27]}  Bxe4 {[%clk 0:00:06]} 28. Qxe4 {[%clk 0:01:26]}  f5 {[%clk 0:00:05]} 29. Qe5 {[%clk 0:01:25]}  Rd7 {[%clk 0:00:04]} 30. c5 {[%clk 0:01:22]}  bxc5 {[%clk 0:00:04]} 31. dxc5 {[%clk 0:01:22]}  Rfd8 {[%clk 0:00:04]} 32. Rxd7 {[%clk 0:01:20]}  Rxd7 {[%clk 0:00:05]} 33. Re1 {[%clk 0:01:15]}  Qf6 {[%clk 0:00:05]} 34. Bxe6+ {[%clk 0:01:06]}  Nxe6 {[%clk 0:00:04]} 35. Qxe6+ {[%clk 0:01:06]}  Qxe6 {[%clk 0:00:04]} 36. Rxe6 {[%clk 0:01:06]}  Rd5 {[%clk 0:00:04]} 37. Rc6 {[%clk 0:01:04]}  Rd1+ {[%clk 0:00:03]} 38. Kf2 {[%clk 0:01:04]}  Rc1 {[%clk 0:00:04]} 39. Kf3 {[%clk 0:01:03]}  Rc4 {[%clk 0:00:04]} 40. a5 {[%clk 0:01:03]}  Kh7 {[%clk 0:00:03]} 41. Ke3 {[%clk 0:01:02]}  g5 {[%clk 0:00:02]} 42. Kd3 {[%clk 0:01:02]}  Rc1 {[%clk 0:00:02]} 43. Kd4 {[%clk 0:01:02]}  h4 {[%clk 0:00:01]} 44. Rxa6 {[%clk 0:01:01]}  g4 {[%clk 0:00:01]} 45. Rf6 {[%clk 0:01:00]}  Rc2 {[%clk 0:00:01]} 46. a6 {[%clk 0:00:58]}  Rxg2 {[%clk 0:00:01]} 47. a7 {[%clk 0:00:55]}  Ra2 {[%clk 0:00:02]} 48. Rf7+ {[%clk 0:00:55]}  Kg6 {[%clk 0:00:02]} 49. Rb7 {[%clk 0:00:55]}  g3 {[%clk 0:00:03]} 50. hxg3 {[%clk 0:00:54]}  hxg3 {[%clk 0:00:04]} 51. c6 {[%clk 0:00:54]}  g2 {[%clk 0:00:04]} 52. Rb1 {[%clk 0:00:52]}  Rxa7 {[%clk 0:00:04]} 53. Kd5 {[%clk 0:00:52]}  f4 {[%clk 0:00:04]} 54. Ke4 {[%clk 0:00:50]}  Kg5 {[%clk 0:00:02]} 55. Kf3 {[%clk 0:00:50]}  Rc7 {[%clk 0:00:02]} 56. Rc1 {[%clk 0:00:49]}  g1=Q {[%clk 0:00:01]} 57. Rxg1+ {[%clk 0:00:48]}  Kf5 {[%clk 0:00:02]} 58. Rc1 {[%clk 0:00:49]}  Ke5 {[%clk 0:00:02]} 59. Rc2 {[%clk 0:00:48]}  Kd6 {[%clk 0:00:03]} 60. Kxf4 {[%clk 0:00:48]}  Rxc6 {[%clk 0:00:04]} 61. Rd2+ {[%clk 0:00:49]}  Kc7 {[%clk 0:00:04]} 62. Rf2 {[%clk 0:00:49]}  Rd6 {[%clk 0:00:05]} 63. Ke3 {[%clk 0:00:49]}  Re6+ {[%clk 0:00:05]} 64. Kd4 {[%clk 0:00:49]}  Rd6+ {[%clk 0:00:06]} 65. Kc5 {[%clk 0:00:50]}  Rc6+ {[%clk 0:00:07]} 66. Kb5 {[%clk 0:00:50]}  Rb6+ {[%clk 0:00:07]} 67. Ka5 {[%clk 0:00:51]}  Rd6 {[%clk 0:00:08]} 68. Rc2+ {[%clk 0:00:50]}  Kb7 {[%clk 0:00:08]} 69. Rh2 {[%clk 0:00:50]}  Rd5+ {[%clk 0:00:08]} 70. Kb4 {[%clk 0:00:49]}  Kc6 {[%clk 0:00:08]} 71. Kc4 {[%clk 0:00:50]}  Rc5+ {[%clk 0:00:08]} 72. Kd4 {[%clk 0:00:50]}  Rd5+ {[%clk 0:00:09]} 73. Ke4 {[%clk 0:00:50]}  Rd7 {[%clk 0:00:10]} 74. Rc2+ {[%clk 0:00:48]}  Kb6 {[%clk 0:00:10]} 75. Rb2+ {[%clk 0:00:48]}  Kc7 {[%clk 0:00:10]} 76. Rc2+ {[%clk 0:00:48]}  Kd8 {[%clk 0:00:10]} 77. Ke5 {[%clk 0:00:47]}  Re7+ {[%clk 0:00:10]} 78. Kd6 {[%clk 0:00:46]}  Rd7+ {[%clk 0:00:10]} 79. Ke6 {[%clk 0:00:46]}  Re7+ {[%clk 0:00:10]} 80. Kd6 {[%clk 0:00:23]}  Rd7+ {[%clk 0:00:11]} 81. Ke6 {[%clk 0:00:23]}  Re7+ {[%clk 0:00:10]} 82. Kd6 {[%clk 0:00:24]} 1/2-1/2


[Site "https://www.chess.com"]